bitfinex/quotes_SOLUSD_20260311
["timestamp","ask_amount","ask_price","bid_price","bid_amount"]
[1773251210154,7.36617312,87.24,87.213,2.74716289]
[1773251210367,11.46193216,87.246,87.213,2.74716289]
[1773251211369,7.36617312,87.23,87.213,2.74716289]
[1773251211571,7.36617312,87.24,87.213,2.74716289]
[1773251212671,7.36617312,87.23,87.193,2.74716289]
[1773251212867,7.36617312,87.23,87.194,2.74716289]
[1773251213265,2.66683253,87.238,87.2,7.36617312]
[1773251213556,2.66683253,87.248,87.211,2.74716289]
[1773251213961,11.46171215,87.247,87.211,2.74716289]
[1773251215582,11.46171215,87.247,87.213,2.74716289]
[1773251216173,2.66683253,87.246,87.212,40.1320919]
[1773251216376,11.46171215,87.247,87.212,40.1320919]
[1773251216377,2.66683253,87.239,87.212,11.46631197]
[1773251216758,7.36617312,87.23,87.204,11.46736388]
[1773251217775,11.46322196,87.236,87.204,11.46736388]
[1773251217977,11.46289461,87.238,87.205,2.74716289]
[1773251218480,7.36617312,87.23,87.205,2.74716289]
[1773251219978,11.46359104,87.233,87.206,11.46710088]
[1773251220182,11.46153364,87.249,87.211,2.74716289]
[1773251220372,7.36617312,87.24,87.211,2.74716289]
[1773251220560,11.46153364,87.249,87.211,2.74716289]
[1773251220961,7.36617312,87.24,87.211,2.74716289]
[1773251222179,7.36617312,87.24,87.205,2.92]
[1773251222180,7.36617312,87.23,87.205,2.92]
[1773251222371,10.03300565,87.22,87.187,2.74716289]
[1773251223266,7.36617312,87.23,87.191,2.74716289]
[1773251223980,7.36617312,87.23,87.193,2.74716289]
[1773251224465,7.36617312,87.23,87.19,8.51309363]
[1773251224466,7.36617312,87.23,87.195,2.74716289]
[1773251224863,7.36617312,87.24,87.2,7.36617312]
[1773251225076,7.36617312,87.25,87.211,2.74716289]
[1773251225274,18.82756613,87.25,87.211,2.74716289]
[1773251225580,7.36617312,87.22,87.189,11.46930547]
[1773251225768,2.66683253,87.209,87.181,11.47038919]
[1773251226370,2.66683253,87.209,87.174,28.67822684]
[1773251226584,2.66683253,87.209,87.18,7.36617312]
[1773251226783,11.4668379,87.208,87.174,28.67822684]
[1773251227575,11.4668379,87.208,87.175,2.74716289]
[1773251229284,7.36617312,87.2,87.177,2.74716289]
[1773251229587,2.66683253,87.219,87.181,2.74716289]
[1773251230973,7.36617312,87.21,87.181,2.74716289]
[1773251231685,2.66683253,87.218,87.183,2.74716289]
[1773251231990,7.36617312,87.21,87.183,2.74716289]
[1773251232184,2.66683253,87.218,87.183,2.74716289]
[1773251232380,7.36617312,87.2,87.172,28.67886664]
[1773251232586,2.66683253,87.209,87.174,2.74716289]
[1773251233782,2.66683253,87.209,87.181,2.74716289]
[1773251234971,7.36783765,87.22,87.181,2.74716289]
[1773251235171,2.66683253,87.238,87.191,2.74716289]
[1773251235375,11.46345507,87.234,87.201,2.74716289]
[1773251235585,11.46158078,87.248,87.212,11.46631197]
[1773251235892,14.12841331,87.248,87.213,2.74716289]
[1773251236191,2.66683253,87.247,87.213,2.74716289]
[1773251236372,2.66683253,87.229,87.208,2.92]
[1773251236573,2.66683253,87.229,87.209,11.46670641]
[1773251236790,2.66683253,87.229,87.208,2.92]
[1773251237381,2.66683253,87.229,87.209,11.46670641]
[1773251237582,2.66683253,87.229,87.208,2.92]
[1773251238093,11.46420874,87.228,87.208,2.92]
[1773251238292,2.66683253,87.229,87.209,11.46670641]
[1773251238679,11.46420874,87.228,87.208,2.92]
[1773251238884,11.46420874,87.228,87.208,14.38678924]
[1773251239090,2.66683253,87.229,87.208,14.38678924]
[1773251240490,11.46276321,87.239,87.208,14.38678924]
[1773251240694,2.52024452,87.238,87.208,14.38678924]
[1773251241483,7.36783765,87.23,87.208,14.38678924]
[1773251241795,2.0,104.95,87.208,14.38678924]
[1773251241796,7.36783765,87.24,87.21,2.60794574]
[1773251241985,2.52024452,87.246,87.211,2.60794574]
[1773251242178,7.36783765,87.25,87.211,2.60794574]
[1773251242386,11.46144941,87.249,87.213,2.60794574]
[1773251243177,2.52024452,87.239,87.213,2.60794574]
[1773251243377,2.52024452,87.239,87.212,42.74003764]
[1773251243578,13.98169393,87.249,87.213,2.60794574]
[1773251244099,2.52024452,87.248,87.213,2.60794574]
[1773251244296,9.88808217,87.24,87.213,2.60794574]
[1773251244594,13.98313913,87.238,87.213,2.60794574]
[1773251245096,2.52024452,87.237,87.213,2.60794574]
[1773251245299,2.52024452,87.229,87.191,2.60794574]
[1773251245884,2.52024452,87.229,87.192,2.60794574]
[1773251246598,2.52024452,87.237,87.194,2.60794574]
[1773251246896,3.69383402,87.259,87.194,2.60794574]
[1773251246897,2.52024452,87.229,87.194,2.60794574]
[1773251248803,2.52024452,87.227,87.2,7.36783765]
[1773251248985,2.52024452,87.227,87.2,9.97578339]
[1773251249297,2.52024452,87.227,87.2,2.60794574]
[1773251250895,7.36783765,87.24,87.202,2.60794574]
[1773251251082,2.52024452,87.239,87.202,2.60794574]
[1773251251285,2.52024452,87.239,87.211,2.60794574]
[1773251252392,2.92,87.26,87.221,2.60794574]
[1773251252393,2.52024452,87.255,87.221,2.60794574]
[1773251253605,2.52024452,87.255,87.22,7.36783765]
[1773251253606,2.52024452,87.255,87.223,2.60794574]
[1773251254797,13.98102786,87.255,87.223,2.60794574]
[1773251255601,13.98102786,87.255,87.225,2.60794574]
[1773251255896,13.98102786,87.255,87.217,2.92]
[1773251255897,2.52024452,87.239,87.2,7.36783765]
[1773251256104,2.52024452,87.239,87.2,36.03723885]
[1773251256680,2.52024452,87.238,87.2,36.03723885]
[1773251256902,7.36783765,87.23,87.201,2.92]
[1773251257100,2.52024452,87.229,87.201,2.92]
[1773251257404,7.36783765,87.21,87.181,2.92]
[1773251257703,2.52024452,87.209,87.19,7.36783765]
[1773251257918,2.52024452,87.209,87.182,40.14590167]
[1773251259384,0.31934044,87.249,87.169,11.47196824]
[1773251259385,7.36783765,87.2,87.169,11.47196824]
[1773251259582,7.36783765,87.2,87.171,11.47170503]
[1773251259583,11.46802142,87.199,87.171,11.47170503]
[1773251260405,2.52024452,87.202,87.171,11.47170503]
[1773251260814,7.36783765,87.28,87.22,5.98525768]
[1773251261006,7.36783765,87.25,87.221,2.92]
[1773251261698,11.46144941,87.249,87.221,2.92]
[1773251262007,7.36783765,87.26,87.222,11.46499736]
[1773251262204,11.46013591,87.259,87.222,11.46499736]
[1773251262406,40.1104757,87.259,87.222,11.46499736]
[1773251262708,40.1104757,87.259,87.211,2.92]
[1773251262709,2.77926081,87.239,87.211,2.92]
[1773251263504,0.1,87.29,87.231,4.82477569]
[1773251263703,0.1,87.29,87.261,11.45987325]
[1773251264101,7.36783765,87.27,87.237,2.92]
[1773251265310,7.36783765,87.27,87.238,2.7657202]
[1773251265618,7.36783765,87.28,87.241,2.7657202]
[1773251265914,2.63624993,87.278,87.242,11.46236904]
[1773251266114,7.36783765,87.27,87.241,2.7657202]
[1773251266314,2.63624993,87.259,87.237,2.92]
[1773251266617,2.63624993,87.249,87.22,2.92]
[1773251266817,2.63624993,87.229,87.201,2.92]
[1773251267712,7.36783765,87.24,87.203,2.7657202]
[1773251268025,11.46276321,87.239,87.203,2.7657202]
[1773251268203,11.46276321,87.239,87.21,7.36783765]
[1773251268403,11.46276321,87.239,87.203,2.7657202]
[1773251268404,14.09901314,87.239,87.203,2.7657202]
[1773251268911,2.63624993,87.238,87.203,2.7657202]
[1773251269104,2.63624993,87.238,87.201,2.92]
[1773251269105,2.63624993,87.229,87.201,14.38773986]
[1773251271019,7.36783765,87.22,87.201,2.92]
[1773251271215,2.56970062,87.227,87.201,2.92]
[1773251271809,2.56970062,87.227,87.202,11.46762688]
[1773251272321,14.03408337,87.227,87.202,11.46762688]
[1773251272509,28.65513655,87.245,87.202,11.46762688]
[1773251272510,2.56970062,87.244,87.203,2.67792243]
[1773251272822,2.56970062,87.239,87.203,2.67792243]
[1773251275719,9.93753827,87.23,87.202,11.46762688]
[1773251277411,2.56970062,87.23,87.202,40.1366941]
[1773251277617,2.56970062,87.23,87.202,11.46762688]
[1773251277921,11.46407731,87.229,87.202,11.46762688]
[1773251278422,2.56970062,87.23,87.202,40.1366941]
[1773251278932,14.03376902,87.23,87.202,11.46762688]
[1773251279625,2.56970062,87.229,87.201,2.92]
[1773251279824,11.46420874,87.228,87.202,11.46762688]
[1773251280212,2.56970062,87.229,87.202,11.46762688]
[1773251280636,2.56970062,87.229,87.202,40.1366941]
[1773251280927,14.03115003,87.249,87.211,2.67792243]
[1773251281124,14.03115003,87.249,87.22,7.36783765]
[1773251281306,14.03115003,87.249,87.221,2.67792243]
[1773251281511,2.56970062,87.268,87.24,7.36783765]
[1773251281710,11.45908533,87.267,87.24,7.36783765]
[1773251281913,2.56970062,87.266,87.237,11.46298796]
[1773251283225,2.56970062,87.249,87.223,11.46479316]
[1773251283426,7.36783765,87.28,87.241,2.67792243]
[1773251283612,11.45652972,87.287,87.261,2.67792243]
[1773251283929,7.46783765,87.29,87.262,2.67792243]
[1773251284322,11.45750685,87.28,87.262,2.67792243]
[1773251284525,0.1,87.29,87.262,14.13766435]
[1773251285026,11.45705385,87.283,87.262,2.67792243]
[1773251285223,5.2365132,87.278,87.263,2.67792243]
[1773251285427,0.1,87.29,87.27,7.36783765]
[1773251285629,0.1,87.29,87.261,11.45976143]
[1773251285630,2.56970062,87.289,87.261,11.45976143]
[1773251285813,2.56970062,87.279,87.255,2.92]
[1773251286007,2.56970062,87.279,87.256,11.46052993]
[1773251286229,2.56970062,87.279,87.255,2.92]
[1773251287432,2.56970062,87.279,87.256,11.46052993]
[1773251288037,11.4576411,87.278,87.256,11.46052993]
[1773251288222,2.56970062,87.269,87.255,2.92]
[1773251288623,2.56970062,87.269,87.256,11.46052993]
[1773251288831,2.56970062,87.289,87.256,11.46052993]
[1773251289129,2.56970062,87.288,87.26,7.36783765]
[1773251289315,0.1,87.29,87.27,7.36783765]
[1773251289512,0.1,87.29,87.28,7.36783765]
[1773251289729,11.4542339,87.304,87.28,7.36783765]
[1773251289931,2.66970062,87.31,87.281,11.45724728]
[1773251290332,2.66970062,87.31,87.29,7.36783765]
[1773251291028,0.1,87.31,87.3,7.36783765]
[1773251291227,0.1,87.31,87.291,2.67792243]
[1773251291543,0.1,87.31,87.282,2.67792243]
[1773251291721,0.1,87.31,87.29,7.36783765]
[1773251292026,0.1,87.31,87.291,11.45593474]
[1773251292628,0.1,87.33,87.292,2.67792243]
[1773251292945,2.92,87.354,87.291,40.0957716]
[1773251292946,7.46783765,87.38,87.322,2.67792243]
[1773251293127,11.44439739,87.379,87.34,10.04576008]
[1773251293324,2.56970062,87.369,87.323,2.92]
[1773251293538,2.56970062,87.369,87.33,7.36783765]
[1773251293746,2.56970062,87.369,87.34,7.36783765]
[1773251294352,2.56970062,87.369,87.341,11.44937658]
[1773251294524,0.1,87.38,87.35,7.36783765]
[1773251294726,2.56970062,87.379,87.35,7.36783765]
[1773251294929,2.56970062,87.379,87.35,2.92]
[1773251295130,2.56970062,87.359,87.322,2.92]
[1773251295445,2.56970062,87.344,87.311,2.67792243]
[1773251295930,2.56970062,87.339,87.31,2.92]
[1773251296128,131.70908738,87.38,87.331,2.67792243]
[1773251296129,0.1,87.38,87.331,2.67792243]
[1773251296331,7.34501222,87.37,87.331,2.67792243]
[1773251296534,7.34501222,87.37,87.341,2.67792243]
[1773251296937,7.44501222,87.38,87.341,2.67792243]
[1773251298138,7.44501222,87.38,87.351,11.44806584]
[1773251298355,0.1,87.38,87.36,7.34501222]
[1773251298562,0.1,87.38,87.352,2.67792243]
[1773251299444,7.34501222,87.37,87.347,2.92]
[1773251299651,9.91471284,87.37,87.347,14.36852621]
[1773251299964,2.56970062,87.37,87.347,2.92]
[1773251300265,11.44701747,87.359,87.333,2.92]
[1773251300478,11.44701747,87.359,87.333,11.45038943]
[1773251300653,7.34501222,87.36,87.333,11.45038943]
[1773251300954,7.34501222,87.36,87.332,2.54580839]
[1773251300955,7.34501222,87.35,87.329,2.92]
[1773251302362,11.44832797,87.349,87.329,2.92]
[1773251302759,7.34501222,87.35,87.33,11.45081873]
[1773251302970,45.75611941,87.421,87.33,11.45081873]
[1773251302971,11.44093403,87.406,87.345,2.54580839]
[1773251303264,7.34501222,87.41,87.38,7.34501222]
[1773251303466,11.44121263,87.404,87.38,7.34501222]
[1773251303772,11.54167982,87.4,87.37,9.89082061]
[1773251303962,7.34501222,87.39,87.35,7.34501222]
[1773251304145,2.58608846,87.392,87.36,7.34501222]
[1773251304344,7.34501222,87.39,87.351,11.44806584]
[1773251304557,11.44282592,87.391,87.36,7.34501222]
[1773251305255,2.58608846,87.392,87.36,7.34501222]
[1773251305647,14.02884598,87.392,87.36,7.34501222]
[1773251306161,2.58608846,87.389,87.356,2.54580839]
[1773251306353,2.58608846,87.389,87.351,42.98823046]
[1773251306354,7.34501222,87.37,87.351,2.92]
[1773251306565,2.58608846,87.379,87.351,2.92]
[1773251307560,2.58608846,87.379,87.352,11.44793479]
[1773251307870,2.58608846,87.379,87.353,1.14478037]
[1773251308057,7.34501222,87.39,87.353,1.14478037]
[1773251308254,7.34501222,87.39,87.351,2.92]
[1773251308255,9.93110068,87.38,87.351,2.92]
[1773251308445,2.58608846,87.369,87.331,5.46580839]
[1773251308650,2.58608846,87.369,87.331,16.916496]
[1773251309074,7.34501222,87.36,87.331,2.92]
[1773251309244,2.58608846,87.359,87.331,2.92]
[1773251309449,2.58608846,87.359,87.331,14.37068761]
[1773251310176,2.58608846,87.339,87.306,2.92]
[1773251310360,14.03585831,87.338,87.307,11.45383531]
[1773251310671,14.03585831,87.338,87.306,2.92]
[1773251310882,11.44976985,87.338,87.307,2.54580839]
[1773251311362,7.34501222,87.33,87.306,2.92]
[1773251311577,11.44976985,87.338,87.307,13.9996437]
[1773251311874,11.44976985,87.338,87.308,2.54580839]
[1773251312166,11.44976985,87.338,87.267,5.46580839]
[1773251312167,2.58608846,87.319,87.267,5.46580839]
[1773251312373,2.58608846,87.319,87.169,12.6757087]
[1773251312374,7.34501222,87.29,87.251,2.54580839]
[1773251312575,7.34501222,87.28,87.251,14.00699508]
[1773251312749,85.89294302,87.318,87.271,2.54580839]
[1773251312750,11.4523924,87.318,87.271,2.54580839]
[1773251313061,7.34501222,87.3,87.271,2.54580839]
[1773251313459,40.08337341,87.318,87.271,2.54580839]
[1773251313660,7.34501222,87.31,87.271,2.54580839]
[1773251314562,7.34501222,87.31,87.273,2.54580839]
[1773251314863,11.45357294,87.309,87.273,2.54580839]
[1773251315367,11.45094985,87.329,87.291,2.54580839]
[1773251315570,7.34501222,87.32,87.291,2.54580839]
[1773251315870,40.07832449,87.329,87.291,2.54580839]
[1773251316072,11.45094985,87.329,87.291,2.54580839]
[1773251316373,11.45011528,87.336,87.301,2.54580839]
[1773251316560,11.45011528,87.336,87.303,2.54580839]
[1773251317069,7.34501222,87.33,87.297,11.45503012]
[1773251317275,7.34501222,87.32,87.293,2.54580839]
[1773251317472,7.34501222,87.32,87.294,11.45554104]
[1773251318871,7.34501222,87.31,87.276,2.54580839]
[1773251319071,7.34501222,87.31,87.282,11.45711597]
[1773251319269,40.08291436,87.319,87.264,14.00516563]
[1773251319270,7.34501222,87.3,87.264,14.00516563]
[1773251319469,7.34501222,87.29,87.264,2.54580839]
[1773251319887,7.34501222,87.3,87.264,2.54580839]
[1773251320859,7.34501222,87.3,87.266,2.63942705]
[1773251321062,11.45488493,87.299,87.266,2.63942705]
[1773251321779,7.34501222,87.3,87.266,2.63942705]
[1773251321977,18.79977037,87.3,87.266,2.63942705]
[1773251322885,7.34501222,87.31,87.271,2.63942705]
[1773251323092,9.38238509,87.32,87.281,2.63942705]
[1773251323874,7.34501222,87.32,87.281,2.63942705]
[1773251325076,40.08291436,87.319,87.281,2.63942705]
[1773251325275,7.34501222,87.31,87.283,2.63942705]
[1773251325577,40.08291436,87.319,87.283,2.63942705]
[1773251326378,40.08291436,87.319,87.267,28.64771333]
[1773251326379,2.03406186,87.309,87.269,14.09824977]
[1773251326570,7.34501222,87.3,87.269,14.09824977]
[1773251327071,11.45488493,87.299,87.269,14.09824977]
[1773251327670,11.454407,87.303,87.271,2.63942705]
[1773251327873,35.97866905,87.31,87.271,2.63942705]
[1773251327874,11.45370412,87.308,87.271,2.63942705]
[1773251330172,7.34501222,87.32,87.281,2.63585806]
[1773251330374,11.45226124,87.319,87.281,2.63585806]
[1773251330774,7.34501222,87.31,87.281,2.63585806]
[1773251331579,40.08291436,87.319,87.281,2.63585806]
[1773251331877,7.34501222,87.31,87.281,2.63585806]
[1773251332190,11.45252356,87.317,87.281,2.63585806]
[1773251332689,7.34501222,87.3,87.272,2.63585806]
[1773251334365,11.45488493,87.299,87.273,11.45829752]
[1773251334565,11.45357294,87.309,87.274,2.63585806]
[1773251336380,11.45357294,87.309,87.281,2.63585806]
[1773251336782,13.47643057,87.309,87.275,11.45803494]
[1773251336968,2.02285763,87.308,87.275,11.45803494]
[1773251337169,2.02285763,87.308,87.276,2.63585806]
[1773251338367,7.34501222,87.31,87.278,2.63585806]
[1773251338570,11.45304631,87.314,87.281,2.63585806]
[1773251338876,7.34501222,87.31,87.281,2.63585806]
[1773251340279,11.45357294,87.309,87.282,11.45711601]
[1773251340486,11.45357294,87.309,87.283,2.63585806]
[1773251340784,7.34501222,87.3,87.27,11.45869141]
[1773251341482,7.34501222,87.3,87.271,2.63585806]
[1773251342483,11.45488493,87.299,87.272,11.45842882]
[1773251342690,2.01912369,87.308,87.273,2.63585806]
[1773251342871,7.34501222,87.29,87.273,2.63585806]
[1773251343071,7.34501222,87.3,87.273,2.63585806]
[1773251343266,2.01643431,87.303,87.26,1e-08]
[1773251343267,2.01643431,87.279,87.26,1e-08]
[1773251343467,2.01643431,87.269,87.221,2.63585806]
[1773251343768,7.34501222,87.25,87.23,11.46394589]
[1773251343968,7.34501222,87.25,87.221,2.63585806]
[1773251343969,7.34501222,87.24,87.221,2.63585806]
[1773251344169,7.34501222,87.24,87.212,2.63585806]
[1773251344369,7.34501222,87.24,87.213,11.4661805]
[1773251344591,7.34501222,87.23,87.212,2.63585806]
[1773251344776,7.34501222,87.22,87.2,2.92]
[1773251345181,7.34501222,87.22,87.201,11.46775839]
[1773251345371,7.34501222,87.22,87.2,14.38779624]
[1773251345779,7.34501222,87.22,87.2,2.92]
[1773251345989,7.34501222,87.24,87.202,2.74251327]
[1773251346192,18.80774267,87.24,87.202,2.74251327]
[1773251346693,18.80774267,87.24,87.204,2.74251327]
[1773251346991,7.34501222,87.23,87.204,2.74251327]
[1773251347387,7.34501222,87.23,87.203,11.46749538]
[1773251347388,7.34501222,87.21,87.19,0.2]
[1773251348288,7.34501222,87.2,87.19,1e-08]
[1773251348672,2.73910895,87.205,87.19,1e-08]
[1773251348873,7.34501222,87.2,87.19,1e-08]
[1773251350197,11.46709633,87.207,87.19,1e-08]
[1773251350598,2.73746488,87.221,87.19,9.98087029]
[1773251350897,7.34501222,87.2,87.19,1e-08]
[1773251351591,11.46171215,87.247,87.191,2.73958513]
[1773251351792,11.46171215,87.247,87.211,2.73958513]
[1773251352477,40.11599252,87.247,87.201,2.73958513]
[1773251352680,7.34501222,87.23,87.202,11.46762688]
[1773251353389,7.34501222,87.24,87.201,2.73958513]
[1773251353796,11.46171215,87.247,87.211,2.73958513]
[1773251353998,7.34501222,87.25,87.211,2.73958513]
[1773251353999,7.34501222,87.25,87.221,2.73958513]
[1773251354495,11.45919724,87.267,87.231,2.73958513]
[1773251355086,11.45750982,87.279,87.241,2.73958513]
[1773251355401,7.34501222,87.27,87.241,2.73958513]
[1773251356689,7.34501222,87.27,87.242,11.46236904]
[1773251356890,7.34501222,87.27,87.241,2.73958513]
[1773251357604,7.35809061,87.27,87.241,2.73958513]
[1773251358596,40.10128438,87.279,87.242,11.46236904]
[1773251358800,7.35809061,87.27,87.241,2.73958513]
[1773251359600,7.35809061,87.25,87.217,2.73958513]
[1773251359897,7.35809061,87.26,87.22,10.09767574]
[1773251360100,7.35809061,87.26,87.22,2.73958513]
[1773251360276,7.35809061,87.25,87.22,2.73958513]
[1773251360681,11.46144941,87.249,87.221,14.20471394]
[1773251360885,7.35809061,87.26,87.222,2.73958513]
[1773251361300,1.14577723,87.269,87.23,7.35809061]
[1773251361607,11.45875227,87.27,87.231,2.73958513]
[1773251361899,18.81684288,87.27,87.231,2.73958513]
[1773251362079,7.35809061,87.26,87.231,2.73958513]
[1773251362285,7.35809061,87.26,87.22,7.35809061]
[1773251362286,7.35809061,87.26,87.214,2.73958513]
[1773251362483,7.35809061,87.25,87.215,2.73958513]
[1773251362681,1.14577723,87.269,87.214,40.131057]
[1773251362682,7.35809061,87.26,87.217,2.73958513]
[1773251362878,7.35809061,87.25,87.217,2.73958513]
[1773251363183,7.35809061,87.25,87.185,8.51860971]
[1773251363184,7.35809061,87.23,87.204,2.92]
[1773251363880,2.48745735,87.239,87.204,2.92]
[1773251364296,7.35809061,87.23,87.191,40.14175774]
[1773251364995,2.48745735,87.237,87.192,2.52590112]
[1773251365480,2.48745735,87.237,87.201,2.52590112]
[1773251366000,2.48745735,87.247,87.22,7.35809061]
[1773251366194,2.48745735,87.258,87.219,2.52590112]
[1773251366585,7.35809061,87.25,87.219,2.52590112]
[1773251366782,2.48745735,87.256,87.22,11.46526026]
[1773251367083,11.46038448,87.258,87.231,2.52590112]
[1773251367391,57.27823516,87.294,87.22,11.46526026]
[1773251367392,7.35809061,87.31,87.251,2.61352124]
[1773251367705,3.69383402,87.314,87.271,2.61352124]
[1773251367901,7.35809061,87.31,87.271,2.61352124]
[1773251368106,3.69383402,87.314,87.271,2.61352124]
[1773251368422,3.69383402,87.314,87.28,7.35809061]
[1773251368604,7.35809061,87.31,87.271,2.61352124]
[1773251368903,3.69383402,87.314,87.273,2.61352124]
[1773251368904,11.45357294,87.309,87.273,2.61352124]
[1773251369693,40.08750529,87.309,87.273,2.61352124]
[1773251370503,40.08750529,87.309,87.253,2.61352124]
[1773251370504,0.24048995,87.299,87.253,2.61352124]
[1773251371098,11.45501615,87.298,87.261,2.61352124]
[1773251371992,40.09255652,87.298,87.261,2.61352124]
[1773251372595,11.45501615,87.298,87.271,2.61352124]
[1773251372996,0.24075051,87.308,87.273,2.61352124]
[1773251372997,11.45383531,87.307,87.273,2.61352124]
[1773251374099,11.45324608,87.312,87.281,2.61352124]
[1773251374712,9.84554796,87.3,87.262,11.45974192]
[1773251375017,7.35809061,87.29,87.256,11.46045246]
[1773251375210,2.48745735,87.298,87.256,11.46045246]
[1773251375412,2.48745735,87.298,87.26,7.35809061]
[1773251375604,11.45484718,87.3,87.27,7.35809061]
[1773251375803,11.45484718,87.3,87.26,7.35809061]
[1773251376406,11.45484718,87.3,87.26,8.50409106]
[1773251376607,11.45484718,87.3,87.261,2.52590112]
[1773251376807,13.94129266,87.307,87.263,2.52590112]
[1773251377007,2.48745735,87.306,87.263,2.52590112]
[1773251377621,7.35809061,87.3,87.263,2.52590112]
[1773251377824,9.84554796,87.3,87.263,2.52590112]
[1773251378024,2.48745735,87.299,87.263,2.52590112]
[1773251379021,11.45501615,87.298,87.265,2.52590112]
[1773251381115,40.08757847,87.309,87.271,2.72272404]
[1773251381323,40.08757847,87.309,87.265,1.14593479]
[1773251381324,7.35809061,87.29,87.265,11.45927281]
[1773251381633,2.49033015,87.279,87.232,2.92]
[1773251381811,7.35809061,87.27,87.233,4.06635516]
[1773251382009,2.49033015,87.279,87.233,2.92]
[1773251382616,7.35809061,87.27,87.233,2.92]
[1773251383532,42.59620967,87.269,87.234,14.18614426]
[1773251383709,42.59620967,87.269,87.235,2.72272404]
[1773251384425,13.94915287,87.269,87.235,2.72272404]
[1773251385328,11.45830095,87.273,87.24,7.35809061]
[1773251385515,13.94783997,87.279,87.243,2.72272404]
[1773251386524,2.49033015,87.278,87.243,2.72272404]
[1773251386821,7.35809061,87.27,87.243,2.72272404]
[1773251387007,2.49033015,87.269,87.243,2.72272404]
[1773251387323,40.10128438,87.279,87.243,2.72272404]
[1773251387324,11.45750982,87.279,87.243,2.72272404]
[1773251387908,11.45750982,87.279,87.245,2.72272404]
[1773251388422,13.94783997,87.279,87.245,2.72272404]
[1773251388624,2.49033015,87.278,87.245,2.72272404]
[1773251389920,11.45777237,87.277,87.246,11.46184352]
[1773251390126,11.45777237,87.277,87.247,2.64978765]
[1773251390719,2.72148487,87.276,87.247,2.64978765]
[1773251391816,7.35809061,87.27,87.247,2.64978765]
[1773251392020,11.45882272,87.269,87.247,2.64978765]
[1773251392324,11.45803494,87.275,87.248,11.46158078]
[1773251394124,2.72148487,87.274,87.248,11.46158078]
[1773251394330,7.35809061,87.27,87.247,2.64978765]
[1773251394526,2.72148487,87.269,87.234,14.11320787]
[1773251394719,11.45829752,87.273,87.235,2.64978765]
[1773251394919,11.45829752,87.273,87.24,7.35809061]
[1773251395120,11.45829752,87.273,87.241,2.64978765]
[1773251395727,2.72148487,87.272,87.241,2.64978765]
[1773251396432,14.18004498,87.271,87.242,14.11215669]
[1773251396729,2.72148487,87.27,87.242,14.11215669]
[1773251398011,2.72148487,87.27,87.243,2.64978765]
[1773251398630,2.72148487,87.289,87.251,2.64978765]
[1773251399130,2.72148487,87.289,87.249,2.92]
[1773251399131,28.615987,87.364,87.281,2.64978765]
[1773251399315,45.77622574,87.382,87.32,7.35809061]
[1773251399316,7.35809061,87.36,87.32,7.35809061]
[1773251399517,7.35809061,87.36,87.321,2.64978765]
[1773251399731,7.35809061,87.35,87.321,2.64978765]
[1773251400124,7.35809061,87.35,87.316,2.92]
[1773251400532,3.69383402,87.369,87.32,7.35809061]
[1773251400718,11.44701747,87.359,87.33,7.35809061]
[1773251400918,7.33045489,87.38,87.331,2.64978765]
[1773251400919,11.44439739,87.379,87.331,2.64978765]
[1773251401222,11.44439739,87.379,87.341,2.64978765]
[1773251402613,7.33045489,87.38,87.36,7.35809061]
[1773251403324,11.44439739,87.379,87.351,2.92]
[1773251404128,10.05193976,87.38,87.36,7.35809061]
[1773251404630,11.43960854,87.416,87.371,40.05905849]
[1773251405015,2.82148487,87.42,87.39,7.35809061]
[1773251405219,0.1,87.42,87.384,2.92]
[1773251405424,11.43916082,87.419,87.391,2.64978765]
[1773251405625,0.1,87.42,87.391,2.64978765]
[1773251405954,0.1,87.42,87.4,7.35809061]
[1773251407213,0.1,87.42,87.391,2.64978765]
[1773251407421,0.1,87.42,87.4,7.35809061]
[1773251407730,11.43687307,87.437,87.41,7.35809061]
[1773251407936,2.72148487,87.436,87.391,2.64978765]
[1773251408142,2.72148487,87.429,87.391,2.64978765]
[1773251408437,2.72148487,87.429,87.4,7.35809061]
[1773251409012,11.43798325,87.428,87.4,7.35809061]
[1773251410541,14.15937484,87.429,87.41,7.35809061]
[1773251410834,14.15937484,87.429,87.401,11.44151668]
[1773251411138,28.58860006,87.448,87.411,2.64978765]
[1773251411326,2.72148487,87.441,87.411,2.64978765]
[1773251412534,2.72148487,87.436,87.401,11.44151668]
[1773251413135,2.72148487,87.434,87.401,11.44151668]
[1773251414339,2.72148487,87.434,87.4,7.35809061]
[1773251414656,2.72148487,87.434,87.355,45.78967278]
[1773251414657,2.72148487,87.406,87.338,2.92]
[1773251414942,2.72148487,87.369,87.328,1.3781091]
[1773251415119,7.35809061,87.37,87.328,1.3781091]
[1773251415120,2.72148487,87.364,87.328,12.82915313]
[1773251415318,2.72148487,87.364,87.33,7.35809061]
[1773251415539,11.44583829,87.368,87.331,1.37782998]
[1773251415739,2.72148487,87.367,87.331,1.37782998]